Workbook

Sheet POBL
A1: REKAPITULASI PERKEMBANGAN KEGIATAN BELAJA LANGSUNG
A2: TAHUN ANGGARAN 2025
A4: NAMA OPD | E4: : DINAS PEKERJAAN UMUM DAN PENATAAN RUANG
A5: BULAN | E5: : FEBRUARI 2025
A6: NO | E6: JENIS PEKERJAAN | F6: SUMBER DANA | G6: BIDANG | H6: DESA | I6: KECAMATAN | J6: ANGGARAN (Rp) | L6: REKANAN | M6: KONTRAK | P6: JANGKA WAKTU | R6: RENCANA KAS | T6: REALISASI KEUANGAN | V6: REALISASI FISIK | W6: OUTPUT | Y6: KETERANGAN
J7: PENETAPAN | K7: PERUBAHAN | M7: TGL KONTRAK | N7: NO KONTRAK | O7: NILAI KONTRAK | P7: MULAI | Q7: SELESAI | R7: Jumlah (Rp) | S7: % | T7: Jumlah (Rp) | U7: % | V7: % | W7: OUTPUT | X7: SATUAN
A8: 1 | E8: 2 | F8: 3 | G8: 4 | H8: 5 | I8: 6 | J8: 7 | K8: 8 | L8: 9 | M8: 10 | N8: 11 | O8: 12 | P8: 13 | Q8: 14 | R8: 15 | T8: 16 | V8: 17 | W8: 18 | Y8: 19
E9: DINAS PEKERJAAN UMUM DAN PENATAAN RUANG | J9: =SUM(J11,J40,J59,J69,J82,J86,J89,J186,J192) -> 102,705,077,073 | T9: =SUM(T11,T40,T59,T69,T82,T86,T89,T196,T199) -> 1,215,549,838 | U9: =T9/J9*100 -> 1.18
A11: A | E11: PROGRAM PENUNJANG URUSAN PEMERINTAHAN DAERAH KABUPATEN/KOTA | J11: =SUM(J12,J15,J17,J24,J26,J30) -> 17,955,080,693 | T11: =SUM(T12,T15,T17,T26,T30) -> 1,215,549,838 | U11: =T11/J11*100 -> 6.77
B12: 1 | E12: Perencanaan, Penganggaran, dan Evaluasi Kinerja Perangkat Daerah | F12: APBD | G12: BP | J12: =SUM(J13:J14) -> 135,000,000 | T12: =SUM(T13+T14) -> 0 | U12: =T12/J12*100 -> 0
C13: a | E13: Penyusunan Dokumen Perencanaan Perangkat Daerah | F13: APBD | G13: BP | J13: 70,000,000 | U13: =T13/J13*100 -> 0
C14: b | E14: Evaluasi Kinerja Perangkat Daerah | F14: APBD | G14: BP | J14: 65,000,000 | U14: 0
B15: 2 | E15: Administrasi Keuangan Perangkat Daerah | F15: APBD | G15: SEK | J15: =J16 -> 11,305,580,693 | T15: =T16 -> 1,184,349,176 | U15: =T15/J15*100 -> 10.48
C16: a | E16: Penyediaan Gaji dan Tunjangan ASN | F16: APBD | G16: SEK | J16: 11,305,580,693 | T16: =794226325+390122851 -> 1,184,349,176 | U16: =T16/J16*100 -> 10.48
B17: 3 | E17: Administrasi Umum Perangkat Daerah | F17: APBD | G17: SEK | J17: =SUM(J18:J23) -> 412,250,000 | T17: =SUM(T18:T23) -> 2,235,000 | U17: =T17/J17*100 -> 0.54
C18: a | E18: Penyediaan Komponen Instalasi Listrik/Penerangan Bangunan Kantor | F18: APBD | G18: SEK | J18: 10,000,000 | T18: 800,000 | U18: =T18/J18*100 -> 8.00
C19: b | E19: Penyediaan Peralatan dan Perlengkapan Kantor | F19: APBD | G19: SEK | J19: 50,000,000 | U19: 0
C20: c | E20: Penyediaan Peralatan Rumah Tangga | F20: APBD | G20: SEK | J20: 60,000,000 | T20: 1,075,000 | U20: 1.79
C21: d | E21: Penyediaan Barang Cetakan dan Penggandaan | F21: APBD | G21: SEK | J21: 20,000,000 | U21: 0
C22: e | E22: Penyediaan Bahan Bacaan dan Peraturan Perundang-undangan | F22: APBD | G22: SEK | J22: 2,250,000 | T22: 360,000 | U22: 16.00
C23: f | E23: Penyelenggaraan Rapat Koordinasi dan Konsultasi SKPD | F23: APBD | G23: SEK | J23: 270,000,000 | U23: 0
B24: 4 | E24: Pengadaan Barang Milik Daerah Penunjang Urusan Pemerintah Daerah | F24: APBD | G24: SEK | J24: =J25 -> 150,000,000 | T24: =T25 -> 1,035,000 | U24: =T24/J24*100 -> 0.69
C25: a | E25: Pengadaan Peralatan dan Mesin Lainnya | F25: APBD | G25: SEK | J25: 150,000,000 | T25: 1,035,000 | U25: =T25/J25*100 -> 0.69
B26: 5 | E26: Penyediaan Jasa Penunjang Urusan Pemerintahan Daerah | F26: APBD | G26: SEK | J26: =SUM(J27:J29) -> 1,002,250,000 | T26: =SUM(T27,T28,T29) -> 14,780,972 | U26: =T26/J26*100 -> 1.47
C27: a | E27: Penyediaan Jasa Surat Menyurat | F27: APBD | G27: SEK | J27: 2,250,000 | U27: =T27/J27*100 -> 0
C28: b | E28: Penyediaan Jasa Komunikasi, Sumber Daya Air dan Listrik | F28: APBD | G28: SEK | J28: 100,000,000 | T28: 12,830,972 | U28: =T28/J28*100 -> 12.83
C29: c | E29: Penyediaan Jasa Pelayanan Umum Kantor | F29: APBD | G29: SEK | J29: 900,000,000 | T29: 1,950,000 | U29: =T29/J29*100 -> 0.22
B30: 6 | E30: Pemeliharaan Barang Milik Daerah Penunjang Urusan Pemerintahan Daerah | F30: APBD | G30: SEK | J30: =SUM(J31:J33) -> 4,950,000,000 | T30: =SUM(T31,T32,T33) -> 14,184,690 | U30: =T30/J30*100 -> 0.29
C31: a | E31: Penyediaan Jasa Pemeliharaan, Biaya Pemeliharaan, Pajak dan Perizinan Kendaraan Dinas Operasional atau Lapangan | F31: APBD | G31: SEK | J31: 325,000,000 | T31: 13,736,690 | U31: =T31/J31*100 -> 4.23
C32: b | E32: Pemeliharaan Peralatan dan Mesin Lainnya | F32: APBD | G32: SEK | J32: 25,000,000 | U32: 0
C33: c | E33: Pemeliharaan/Rehabilitasi Gedung Kantor dan Bangunan Lainnya | F33: APBD | G33: SEK | J33: =SUM(J34:J38) -> 4,600,000,000 | T33: 448,000 | U33: 0.01
D34: 1 | E34: Pembangunan Rumah Singgah Sosial/Shelter | F34: APBD | G34: SEK | J34: 2,500,000,000
D35: 2 | E35: Rehabilitasi Gedung Kantor Kelurahan Wonosobo Timur | F35: APBD | G35: SEK | I35: Wonosobo | J35: 1,000,000,000
D36: 3 | E36: Pembangunan Gedung Provost Polres Wonosobo (Lanjutan) | F36: APBD | G36: SEK | I36: Wonosobo | J36: 750,000,000
D37: 4 | E37: Rehabilitasi Aula Polsek Mojotengah | F37: APBD | G37: SEK | I37: Mojotengah | J37: 200,000,000
D38: 5 | E38: Biaya Umum | F38: APBD | G38: SEK | J38: 150,000,000
A40: B | E40: PROGRAM PENGELOLAAN SUMBER DAYA AIR (SDA) | J40: =SUM(J41,J54,J55,J56,J57) -> 6,090,000,000
C41: b | E41: Rehabilitasi Jaringan Irigasi Permukaan | G41: SDA | J41: =SUM(J42:J52) -> 3,100,000,000
D42: 1 | E42: Paket Pekerjaan 2025 | F42: APBD | G42: SDA | J42: 1,000,000,000
D43: 2 | E43: Irigasi Gintung Limbangan Watumalang | F43: APBD | G43: SDA | I43: Watumalang | J43: 500,000,000
D44: 3 | E44: SALURAN IRIGASI DI BANCET DESA. CANDI MULYO KEC. KERTEK , Kab. Wonosobo | F44: APBD | G44: SDA | I44: Kertek | J44: 200,000,000
D45: 4 | E45: Pembangunan Irigasi DI Sigupit Desa Karangrejo Kecamatan Selomerto | F45: APBD | G45: SDA | I45: Selomerto | J45: 200,000,000
D46: 5 | E46: PEMBANGUNAN SALURAN IRIGASI DI SIPENATUS DESA. REJOSARI KEC. KALIKAJAR, Kab. Wonosobo | F46: APBD | G46: SDA | I46: Kalikajar | J46: 200,000,000
D47: 6 | E47: pembangunan refilitasi/senderan irigasi DI pahat kelurahan kertek kampung campursari RW02 kec.Kertek, Kab. Wonosobo | F47: APBD | G47: SDA | I47: Kertek | J47: 200,000,000
D48: 7 | E48: pembangunan refilitasi irigasi DI Geblok kelurahan miplak kec. wonosobo, Kab. Wonosobo | F48: APBD | G48: SDA | I48: Wonosobo | J48: 200,000,000
D49: 8 | E49: REHABILITASI DI KALITULANG | F49: APBD | G49: SDA | I49: Watumalang | J49: 100,000,000
D50: 9 | E50: Pembangunan Bendung Penartan Sungai Wanganaji Kelurahan Kalianget Kecamatan Wonosobo | F50: APBD | G50: SDA | I50: Wonosobo | J50: 100,000,000
D51: 10 | E51: Rehabilitasi Saluran dan Senderan Kali Alur DI Mangli Kelurahan Kejiwan Kecamatan Wonosobo | F51: APBD | G51: SDA | I51: Wonosobo | J51: 200,000,000
D52: 11 | E52: Rahabilitasi Irigasi sikudi Kalimendong Kecamatan Leksono | F52: APBD | G52: SDA | I52: Leksono | J52: 200,000,000
C54: c | E54: Operasi dan Pemeliharaan Jaringan Irigasi Permukaan | F54: APBD | G54: SDA | J54: 2,490,000,000
C55: d | E55: Operasi dan Pemeliharaan Bendung Irigasi | F55: APBD | G55: SDA | J55: 300,000,000
C56: e | E56: Operasional Kelembagaan Pengelola Irigasi | F56: APBD | G56: SDA | J56: 100,000,000
C57: f | E57: Penyusunan Rencana Teknis dan Dokumen Lingkungan Hidup untuk Konstruksi Irigasi dan Rawa | F57: APBD | G57: SDA | J57: 100,000,000
A59: C | E59: PROGRAM PENGELOLAAN DAN PENGEMBANGAN SISTEM PENYEDIAAN AIR MINUM | J59: =SUM(J60,J61) -> 1,100,000,000
C60: a | E60: Pembinaan dan Pemberdayaan Masyarakat dalam Pengelolaan dan Pengembangan Sistem Penyediaan Air Minum (SPAM) | F60: APBD | G60: CK | J60: 100,000,000
C61: b | E61: Perluasan Sistem Penyediaan Air Minum (SPAM) Jaringan Perpipaan | F61: APBD | G61: CK | J61: =SUM(J62:J67) -> 1,000,000,000
D62: 1 | E62: Skenario Paska Pembangunan Embung Dieng | F62: APBD | G62: CK | J62: 50,000,000
D63: 2 | E63: Air bersih mojosari dk wonoyoso mojotengah | F63: APBD | G63: CK | I63: Mojotengah | J63: 250,000,000
D64: 3 | E64: Air bersih dk banaran kayugiyang garung | F64: APBD | G64: CK | I64: Garung | J64: 100,000,000
D65: 4 | E65: Perluasan SPAM Jaringan Perpipaan Desa Tieng Kec. Kejajar | F65: APBD | G65: CK | I65: Kejajar | J65: 250,000,000
D66: 5 | E66: Perluasan SPAM Jaringan Perpipaan Desa Damarkasiyan Kec. Kertek | F66: APBD | G66: CK | I66: Kertek | J66: 250,000,000
D67: 6 | E67: Biaya Umum | F67: APBD | G67: CK | J67: 100,000,000
A69: D | E69: PROGRAM PENGELOLAAN DAN PENGEMBANGAN SISTEM AIR LIMBAH | J69: =SUM(J70,J71,J72,J80) -> 1,825,000,000
C70: a | E70: Optimalisasi Instalasi Pengolahan Lumpur Tinja (IPLT) | F70: APBD | G70: CK | J70: 500,000,000
C71: b | E71: Operasi dan Pemeliharaan Sistem Pengelolaan Air Limbah Domestik (SPALD) | F71: APBD | G71: CK | J71: 250,000,000
C72: d | E72: Penyediaan Sub Sistem Pengolahan Air Limbah Domestik (SPALD) Setempat | J72: =SUM(J73:J79) -> 1,000,000,000
D73: 1 | E73: Pembangunan Tangki Septik Komunal Pondok Pesantren Miftahul Huda Siwatu Bumiroso | F73: APBD | G73: CK | I73: Watumalang | J73: 133,500,000
D74: 2 | E74: Pembangunan Tangki Septik Komunal Desa Dieng Kec. Kejajar | F74: APBD | G74: CK | I74: Kejajar | J74: 150,000,000
D75: 3 | E75: Pembangunan Tangki Septik Individu Desa Dempel Kec. Kalibawang | F75: APBD | G75: CK | I75: Kalibawang | J75: 150,000,000
D76: 4 | E76: Pembangunan Tangki Septik Individu Desa Butuh Kec. Kalikajar | F76: APBD | G76: CK | I76: Kalikajar | J76: 150,000,000
D77: 5 | E77: Pembangunan Tangki Septik Individu Desa Tambi Kec. Kejajar | F77: APBD | G77: CK | I77: Kejajar | J77: 150,000,000
D78: 6 | E78: Pembangunan Tangki Septik Individu Desa Kapencar Kec. Kertek | F78: APBD | G78: CK | I78: Kertek | J78: 150,000,000
D79: 7 | E79: Biaya Umum | F79: APBD | G79: CK | J79: 116,500,000
C80: e | E80: Pembinaan dan Pemberdayaan Masyarakat dalam Pengembangan Sistem Pengelolaan Air Limbah Domestik (SPALD) | F80: APBD | G80: CK | J80: 75,000,000
A82: E | E82: PROGRAM PENGELOLAAN DAN PENGEMBANGAN SISTEM DRAINASE | F82: APBD | G82: SDA | J82: =SUM(J83:J84) -> 770,000,000
C83: a | E83: Rehabilitasi Sistem Drainase Perkotaan | F83: APBD | G83: SDA | J83: 370,000,000
C84: b | E84: Operasi dan Pemeliharaan Sistem Drainase Perkotaan | F84: APBD | G84: SDA | J84: 400,000,000
A86: F | E86: PROGRAM PENATAAN BANGUNAN GEDUNG | F86: APBD | G86: BP | J86: =J87 -> 772,458,380
C87: a | E87: Penyelenggaraan Penerbitan Persetujuan Bangunan Gedung (PBG), Sertifikat Laik Fungsi (SLF), Surat Bukti Kepemilikan Bangunan Gedung (SBKBG), Rencana Teknis Pembongkaran Bangunan Gedung (RTB), Tim Profesi Ahli (TPA), Tim Penilai Teknis (TPT), Penilik, dan Pendataan Bangunan Gedung melalui SIMBG | F87: APBD | G87: BP | J87: 772,458,380
A89: G | E89: PROGRAM PENYELENGGARAAN JALAN | J89: =SUM(J90,J91,J96,J99,J163,J164,J165,J166,J184) -> 72,422,348,000
C90: a | E90: Pengelolaan Leger Jalan | F90: APBD | G90: BP | J90: 255,000,000
C91: b | E91: Penggantian Jembatan | J91: =SUM(J92:J95) -> 3,800,000,000
D92: 1 | E92: Penggantian Jembatan Gunturmadu | F92: APBD | G92: BM | H92: Gunturmadu | I92: Mojotengah | J92: 2,750,000,000
D93: 2 | E93: Peningkatan Jembatan Kali Songgoluwang (Lanjutan) | F93: APBD | G93: BM | H93: Manggis - Tlogogundang | I93: Sukoharjo/Leksono | J93: 650,000,000
D94: 3 | E94: Pembangunan Jembatan Ruas Jalan Banyukembar - Pasuruhan Kec. Watumalang | F94: APBD | G94: BM | I94: Watumalang | J94: 200,000,000
D95: 4 | E95: Pembangunan Jembatan Sigandu Sungai Kali Kawung Sumberwulan Kecamatan Selomerto | F95: APBD | G95: BM | I95: Selomerto | J95: 200,000,000
C96: c | E96: Pembangunan Jalan | J96: =SUM(J97,J98) -> 1,800,000,000
D97: 1 | E97: Pengadaan Tanah Jengkol - Tlogo | F97: APBD | G97: BM | I97: Garung | J97: 1,500,000,000
E98: Biaya Umum | F98: APBD | G98: BM | J98: 300,000,000
C99: d | E99: Rekonstruksi Jalan | J99: =SUM(J100:J161) -> 57,292,578,000
D100: 1 | E100: Peningkatan Jalan Sumbersari - Binangun | F100: APBD | G100: BM | I100: Watumalang | J100: 2,750,000,000
D101: 2 | E101: Peningkatan Jalan Pasar lawas - Bts. Kab Banjarnegara | F101: APBD | G101: BM | I101: Watumalang | J101: 500,000,000
D102: 3 | E102: Peningkatan Jalan Tlogo - Banyukembar | F102: APBD | G102: BM | I102: Sukoharjo/Watumalang | J102: 2,500,000,000
D103: 4 | E103: Peningkatan Jalan Pasuruhan - Banyukembar | F103: APBD | G103: BM | I103: Watumalang | J103: 500,000,000
D104: 5 | E104: Peningkatan Jalan Sukoharjo - Gunungtugel | F104: APBD | G104: BM | I104: Sukoharjo | J104: 500,000,000
D105: 6 | E105: Peningkatan Jalan Kalilang - Bulu | F105: APBD | G105: BM | I105: Garung | J105: 2,250,000,000
D106: 7 | E106: Peningkatan Jalan Garung - Kalilang | F106: APBD | G106: BM | I106: Garung | J106: 1,400,000,000
D107: 8 | E107: Peningkatan Jalan Beran - Warangan | F107: APBD | G107: BM | I107: Kepil | J107: 700,000,000
D108: 9 | E108: Peningkatan Jalan Tanjungsari-Marongsari | F108: APBD | G108: BM | I108: Sapuran | J108: 3,250,000,000
D109: 10 | E109: Peningkatan Jalan Larangan- Gambaran | F109: APBD | G109: BM | I109: Kaliwiro | J109: 1,850,000,000
D110: 11 | E110: Peningkatan Jalan Tanjunganom - Grugu | F110: APBD | G110: BM | I110: Kaliwiro | J110: 500,000,000
D111: 12 | E111: Peningkatan Jalan Pucungkerep - Ngasinan | F111: APBD | G111: BM | I111: Kaliwiro | J111: 500,000,000
D112: 13 | E112: Peningkatan Jalan Mojosari - Lumajang | F112: APBD | G112: BM | I112: Mojotengah/Watumalng | J112: 500,000,000
D113: 14 | E113: Peningkatan Jalan Panerusan - Karanggedang (Batas Kab Purworejo) | F113: APBD | G113: BM | I113: Wadaslintang | J113: 500,000,000
D114: 15 | E114: Peningkatan Jalan Mudal - Candirejo | F114: APBD | G114: BM | I114: Mojotengah | J114: 500,000,000
D115: 16 | E115: Peningkatan Jalan Dempel - Margolangu | F115: APBD | G115: BM | I115: Kalibawang | J115: 500,000,000
D116: 17 | E116: Peningkatan Jalan Ngadisono - Gambaran | F116: APBD | G116: BM | I116: Kaliwiro | J116: 750,000,000
D117: 18 | E117: Peningkatan Jalan Gunungtugel - Kajeksan | F117: APBD | G117: BM | I117: Sukoharjo | J117: 1,000,000,000
D118: 19 | E118: Aspalisasi jalan Ruas 208 Kalisat - Plunjaran di Plunjaran Desa Plunjaran Kec. Wadaslintang | F118: APBD | G118: BM | I118: Wadaslintang | J118: 190,000,000
D119: 20 | E119: JALAN SEMAYU bojasari ruas 69 pengaspalan jalan | F119: APBD | G119: BM | I119: Selomerto | J119: 200,000,000
D120: 21 | E120: PENINGKATAN JALAN SEMEN - GENTING, KECAMATAN KALIKAJAR | F120: APBD | G120: BM | I120: Kalikajar | J120: 200,000,000
D121: 22 | E121: PENINGKATAN JALAN RUAS NO 82 KALILANG - BULU | F121: APBD | G121: BM | I121: Garung | J121: 200,000,000
D122: 23 | E122: PENINGKATAN JALAN DAN DRAINASE RUAS NO 188 KAYUBIMA - KALIKUTO ( BNA ) | F122: APBD | G122: BM | I122: Kaliwiro | J122: 200,000,000
D123: 24 | E123: Aspal Jalan Kabupaten Ruas 62 Banjar - Kasiyan Desa Damarkasiyan Kecamatan Kertek | F123: APBD | G123: BM | I123: Kertek | J123: 200,000,000
D124: 25 | E124: Aspal Jalan Kabupaten Ruas 58 Sudungdewo - Bejiarum | F124: APBD | G124: BM | I124: Kertek | J124: 200,000,000
D125: 26 | E125: Aspal Jalan ruas 213 Kepunding Kalilaras Desa Ngalian Kecamatan Wadaslintang | F125: APBD | G125: BM | I125: Wadaslintang | J125: 150,000,000
D126: 27 | E126: Peningkatan Jalan Kemiriombo, katilampa, Tempurejo | F126: APBD | G126: BM | I126: Kalibawang | J126: 150,000,000
D127: 28 | E127: Peningkatan Jalan Mergolangu - Depok di Wanasari | F127: APBD | G127: BM | I127: Kalibawang | J127: 150,000,000
D128: 29 | E128: PENGASPALAN JALAN SITIHARJO WONOKROMO NO RUAS 78 | F128: APBD | G128: BM | I128: Garung | J128: 150,000,000
D129: 30 | E129: SENDERAN BAHU JALAN DAN DRAINASE KALIKAJAR-PERBOTO RUAS JALAN NO 130 DUSUN NASINAN KELURAHAN KALIKAJAR KECAMATAN KALIKAJAR, Kab. Wonosobo | F129: APBD | G129: BM | I129: Kalikajar | J129: 200,000,000
D130: 31 | E130: PEMBANGUNAN DRAINASE KERTEK- PONGGOYUDAN NO RUAS 60 DUSUN KLILIN DESA. SINDUPATEN KEC. KERTEK KAB. WONOSOBO | F130: APBD | G130: BM | I130: Kertek | J130: 200,000,000
D131: 32 | E131: ASPAL JALAN RIMPAK- BATURSARI RUAS NO 127 DESA. RIMPAK KEC. SAPURAN , Kab. Wonosobo | F131: APBD | G131: BM | I131: Sapuran | J131: 200,000,000
D132: 33 | E132: PEMBANGUNAN SENDERAN JALAN RUAS 137 KEMBARAN - TEGALOMBO (DUSUN WONOKRIYO), Kab. Wonosobo | F132: APBD | G132: BM | I132: Kalikajar | J132: 200,000,000
D133: 34 | E133: ASPAL JALAN SIRUKEM- BERAN NO RUAS 164 DESA. BERAN KEC. KEPIL, Kab. Wonosobo | F133: APBD | G133: BM | I133: Kepil | J133: 200,000,000
D134: 35 | E134: Peningkatan Jalan Kabupaten Ruas 127 Rimpak - Batursari Kec. Sapuran | F134: APBD | G134: BM | I134: Sapuran | J134: 200,000,000
D135: 36 | E135: Peningkatan Jalan Kabupaten Ruas Kembaran - Banyumudal Kec. Sapuran | F135: APBD | G135: BM | I135: Sapuran | J135: 150,000,000
D136: 37 | E136: Peningkatan Jalan Ruas Jalan 202 Trimulyo - Lancar Kecamatan Wadaslintang | F136: APBD | G136: BM | I136: Wadaslintang | J136: 200,000,000
D137: 38 | E137: Jalan Lamuk - Kalikuning ruas 140 Kecamatan Kalikajar | F137: APBD | G137: BM | I137: Kalikajar | J137: 150,000,000
D138: 39 | E138: Aspal jalan ruas 53 ngadikusuman menuju tlogodalem | F138: APBD | G138: BM | I138: Kertek | J138: 200,000,000
D139: 40 | E139: Aspal Ruas 95 Jalan Kalibeber Slukatan Desa Slukatan Kecamatan Mojotengah Kab. Wonosobo | F139: APBD | G139: BM | I139: Mojotengah | J139: 200,000,000
D140: 41 | E140: Betonisasi Jalan Ruas 96 Jalan Lumajang-Mojosari Blok Kalitelu | F140: APBD | G140: BM | I140: Mojotengah/Watumalng | J140: 150,000,000
D141: 42 | E141: Aspal Jalan Banaran - Lamuk Ruas 156 Desa Wonosari Kecamatan Kalikajar | F141: APBD | G141: BM | I141: Kalikajar | J141: 200,000,000
D142: 43 | E142: Aspal Jalan Ruas Sadan-Butuh Kidul Ruas 161 Blok Pleregan Desa Butuh Kidul Kecamatan Kalikajar | F142: APBD | G142: BM | I142: Kalikajar | J142: 200,000,000
D143: 44 | E143: Aspal Jalan Perboto - kedalon No. Ruas 155 blok Njemparang Desa Perboto Kecamatan Kalikajar | F143: APBD | G143: BM | I143: Kalikajar | J143: 200,000,000
D144: 45 | E144: Aspal jalan Kalikarung - Kalibawang Ruas 120 Kalikarung Kec.Kalibawang | F144: APBD | G144: BM | I144: Kalibawang | J144: 200,000,000
D145: 46 | E145: Aspal jalan Kalikarung -Pengarengan Ruas 215 Kec. Kalibawang | F145: APBD | G145: BM | I145: Kalibawang | J145: 200,000,000
D146: 47 | E146: Aspal jalan kalibawang - tempurejo Ruas 141 kec.Kalibawang | F146: APBD | G146: BM | I146: Kalibawang | J146: 200,000,000
D147: 48 | E147: Pembangunan Aspal Jalan Pagerejo-Purwojati Ruas 65 Blok Dusun Gumawang Desa Pagerejo Kec. Kertek | F147: APBD | G147: BM | I147: Kertek | J147: 200,000,000
D148: 49 | E148: Aspal Jalan Ruas Kedalon Banyu Mudal no. 154 Blok Semen-Kwadungan Desa purwojiwo Kec. Kalikajar | F148: APBD | G148: BM | I148: Kalikajar | J148: 200,000,000
D149: 50 | E149: Pembangunan Jalan Beton Ruas Luwihan Bakalan No. Ruas 158 blok Bakalan Desa Bowongso Kec. Kalikajar | F149: APBD | G149: BM | I149: Kalikajar | J149: 200,000,000
D150: 51 | E150: Peningkatan Jalan Bugangan - Bangsri Blok Wonokero Kecamatan Wonosobo Ruas 48 | F150: APBD | G150: BM | I150: Wonosobo | J150: 200,000,000
D151: 52 | E151: Aspal jalan Lumajang Mojosari di Dusun Deles Ruas 96 | F151: APBD | G151: BM | I151: Mojotengah | J151: 200,000,000
D152: 53 | E152: Aspal Jalan Ruas 264 Wonokampir - Gedangsari- Pagedangan - Mutisari | F152: APBD | G152: BM | I152: Watumalang | J152: 200,000,000
D153: 54 | E153: Aspal Jalan Ruas 160 Gondowulan - Kepil di Desa Gondowulan | F153: APBD | G153: BM | I153: Kepil | J153: 150,000,000
D154: 55 | E154: Pembangunan Senderan dan Aspal Jalan Gadingrejo - Bener Ruas 162 | F154: APBD | G154: BM | I154: Kepil | J154: 200,000,000
D155: 56 | E155: Aspal Jalan Bojongan Jangkrikan Ruas 170 | F155: APBD | G155: BM | I155: Kepil | J155: 150,000,000
D156: 57 | E156: Aspal Jalan Beran Rimpak Ruas 163 | F156: APBD | G156: BM | I156: Kepil | J156: 150,000,000
D157: 58 | E157: PENINGKATAN JALAN 59 SIYONO - SEMAYU | F157: DAK | G157: BM | I157: Selomerto | J157: 2,298,835,000
D158: 59 | E158: PENINGKATAN JALAN 85 JENGKOL - TLOGO | F158: DAK | G158: BM | I158: Garung | J158: 4,027,908,000
D159: 60 | E159: PENINGKATAN JALAN 99 KALIBEBER - DERODUWUR | F159: DAK | G159: BM | I159: Mojotengah | J159: 8,014,077,500
D160: 61 | E160: PENIGKATAN JALAN 130 KALIKAJAR - PERBOTO | F160: DAK | G160: BM | I160: Kalikajar | J160: 5,643,687,500
D161: 62 | E161: PENIGKATAN JALAN 257 KURIPAN - WONOKAMPIR | F161: DAK | G161: BM | I161: Watumalang | J161: 9,068,070,000
C163: e | E163: Pelebaran Jalan Menuju Standar | F163: APBD | G163: BM | J163: 300,000,000
C164: f | E164: Pemeliharaan Rutin Jembatan | F164: APBD | G164: BM | J164: 200,000,000
C165: g | E165: Survey Kondisi Jalan/Jembatan | F165: APBD | G165: BM | J165: 236,375,000
C166: h | E166: Rehabilitasi Jalan | J166: =SUM(J167:J182) -> 4,058,395,000
D167: 1 | E167: Rehabilitasi Jalan Diwek - Kaliputih, Desa Balekambang | F167: APBD | G167: BM | I167: Selomerto | J167: 300,000,000
D168: 2 | E168: Rehabilitasi Jalan Garung - Boralan - Kayugiyang | F168: APBD | G168: BM | I168: Garung | J168: 300,000,000
D169: 3 | E169: Rehabilitasi jalan selokromo krasak | F169: APBD | G169: BM | I169: Leksono/Selomerto | J169: 800,000,000
D170: 4 | E170: Aspal Jalan Dusun Selamaya Ruas 224 Kajeksan - Gunung Tugel Kec. Sukoharjo | F170: APBD | G170: BM | I170: Sukoharjo | J170: 200,000,000
D171: 5 | E171: Peningkatan Jalan Ruas 116 Sapuran - Marongsari Kecamatan Sapuran Kabupaten Wonosobo | F171: APBD | G171: BM | I171: Sapuran | J171: 150,000,000
D172: 6 | E172: Pembangunan Drainase dan Senderan Rt. 3 Rw 2 Kp. Wonoroto Kel. Wonoroto Kec. Watumalang | F172: APBD | G172: BM | I172: Watumalang | J172: 100,000,000
D173: 7 | E173: Pembangunan Drainase Jalan Utama Kejiwan Kuripan Blok Petir | F173: APBD | G173: BM | I173: Watumalang | J173: 150,000,000
D174: 8 | E174: Pembangunan rehabilitasi aspal jalan welahan- banyukembar kecamatan watumalang | F174: APBD | G174: BM | I174: Watumalang | J174: 200,000,000
D175: 9 | E175: Aspal Jalan Ruas 79 Bakalan ke Boralan Blok Dusun Bakalan Desa Siwuran Kecamatan Garung | F175: APBD | G175: BM | I175: Garung | J175: 200,000,000
D176: 10 | E176: Peningkatan Jalan Blok Wonolobo Desa Manggis | F176: APBD | G176: BM | I176: Leksono | J176: 200,000,000
D177: 11 | E177: rehabilitasi aspal jalan ruas 202 desa trimulyo lancar kecamatan wadaslintang | F177: APBD | G177: BM | I177: Wadaslintang | J177: 200,000,000
D178: 12 | E178: Rehabilitasi Jalan Ngadikusuman-Tlogodalem (nomor ruas 53) | F178: APBD | G178: BM | I178: Kertek | J178: 240,000,000
D179: 13 | E179: Rehabilitasi Jalan ruas Krasak-Winongsari nomor ruas 64 | F179: APBD | G179: BM | I179: Selmerto/kaliwiro | J179: 245,000,000
D180: 14 | E180: Rehabilitasi Jalan ruas Leksono - Kalimendong nomor ruas 241 | F180: APBD | G180: BM | I180: Leksono | J180: 283,395,000
D181: 15 | E181: Rehabilitasi Jalan ruas Mergosari - Kupangan nomor 219 | F181: APBD | G181: BM | I181: Sukoharjo | J181: 245,000,000
D182: 16 | E182: Rehabilitasi Jalan ruas Sidojoyo - Bangsri No ruas 31 | F182: APBD | G182: BM | I182: Wonosobo | J182: 245,000,000
C184: i | E184: Pemeliharaan Rutin Jalan | F184: APBD | G184: BM | J184: 4,480,000,000
A186: I | E186: PROGRAM PENGEMBANGAN JASA KONSTRUKSI | F186: APBD | G186: BP | J186: =SUM(J187:J190) -> 164,190,000
C187: a | E187: Fasilitasi Sertifikasi Tenaga Kerja Konstruksi Kualifikasi Jabatan Operator dan Teknisi atau Analis | F187: APBD | G187: BP | J187: 58,000,000
C188: b | E188: Pelatihan Tenaga Kerja Konstruksi Kualifikasi Jabatan Operator, Teknisi atau Analis | F188: APBD | G188: BP | J188: 56,190,000
C189: c | E189: Penyediaan Data dan Informasi Jasa Konstruksi Cakupan Kabupaten/Kota | F189: APBD | G189: BP | J189: 25,000,000
C190: d | E190: Pembinaan Tertib Usaha, Tertib Penyelenggaraan, dan Tertib Pemanfaatan Produk Jasa Konstruksi | F190: APBD | G190: BP | J190: 25,000,000
A192: J | E192: PROGRAM PENYELENGGARAAN PENATAAN RUANG | F192: APBD | G192: TR | J192: =SUM(J193:J198) -> 1,606,000,000
C193: a | E193: Penetapan Kebijakan dalam rangka Pelaksanaan Penataan Ruang | F193: APBD | G193: TR | J193: 100,000,000
C194: b | E194: Pelaksanaan Persetujuan Substansi RDTR Kabupaten/Kota | F194: APBD | G194: TR | J194: 706,000,000
C195: c | E195: Pelaksanaan Fasilitasi RDTR Kabupaten/Kota | F195: APBD | G195: TR | J195: 350,000,000
C196: d | E196: Sistem informasi dan komunikasi penataan ruang | F196: APBD | G196: TR | J196: 300,000,000
C197: e | E197: Koordinasi Pelaksanaan Penataan Ruang | F197: APBD | G197: TR | J197: 100,000,000
C198: f | E198: Operasionalisasi Tugas dan Fungsi Forum Penataan Ruang | F198: APBD | G198: TR | J198: 50,000,000
R203: Wonosobo, Februari 2025
R204: KEPALA DINAS PEKERJAAN UMUM
R205: DAN PENATAAN RUANG
R206: KABUPATEN WONOSOBO
R211: NURUDIN ARDIYANTO, S.T, M.T
R212: Pembina Tingkat 1
R213: NIP. 19731021 200003 1 003

Sheet Fisik
A1: REKAPITULASI PERKEMBANGAN KEGIATAN BELAJA LANGSUNG
A2: TAHUN ANGGARAN 2025
A4: NAMA OPD | E4: : DINAS PEKERJAAN UMUM DAN PENATAAN RUANG
A5: BULAN | E5: : JANUARI 2025
A6: NO | E6: JENIS PEKERJAAN | F6: SUMBER DANA | G6: BIDANG | H6: DESA | I6: KECAMATAN | J6: ANGGARAN (Rp) | L6: REKANAN | M6: KONTRAK | P6: JANGKA WAKTU | R6: RENCANA KAS | T6: REALISASI KEUANGAN | V6: REALISASI FISIK | W6: OUTPUT | Y6: KETERANGAN
K7: PERUBAHAN | M7: TGL KONTRAK | N7: NO KONTRAK | O7: NILAI KONTRAK | P7: MULAI | Q7: SELESAI | R7: Jumlah (Rp) | S7: % | T7: Jumlah (Rp) | U7: % | V7: % | W7: OUTPUT | X7: SATUAN
A8: 1 | E8: 2 | F8: 3 | G8: 4 | H8: 5 | I8: 5 | J8: 6 | K8: 8 | L8: 9 | M8: 10 | N8: 11 | O8: 12 | P8: 13 | Q8: 14 | R8: 15 | T8: 16 | V8: 17 | W8: 18 | Y8: 19
E9: DINAS PEKERJAAN UMUM DAN PENATAAN RUANG | J9: =SUM(J11,J16,J28,J34,#REF!,#REF!,J41,#REF!,#REF!) ->  | T9: =SUM(T11,T16,T28,T34,#REF!,#REF!,#REF!,T41,#REF!,#REF!) ->  | U9: =T9/J9*100 -> 
J10: 102,705,077,073
A11: A | E11: PROGRAM PENUNJANG URUSAN PEMERINTAHAN DAERAH KABUPATEN/KOTA | J11: =SUM(#REF!,#REF!,#REF!,#REF!,#REF!,#REF!) ->  | T11: =SUM(#REF!,#REF!,#REF!,#REF!,#REF!) ->  | U11: =T11/J11*100 -> 
D12: 3 | E12: Rehabilitasi Gedung Kantor Kelurahan Wonosobo Timur | F12: APBD | G12: SEK | I12: Wonosobo | J12: 1,000,000,000
D13: 4 | E13: Pembangunan Gedung Provost Polres Wonosobo (Lanjutan) | F13: APBD | G13: SEK | I13: Wonosobo | J13: 750,000,000
D14: 5 | E14: REHABILITASI AULA POLSEK MOJOTENGAH | F14: APBD | G14: SEK | I14: Mojotengah | J14: 200,000,000
A16: B | E16: PROGRAM PENGELOLAAN SUMBER DAYA AIR (SDA) | J16: =SUM(#REF!,#REF!,#REF!,#REF!,#REF!) -> 
D17: 1 | E17: Paket Pekerjaan 2025 | F17: APBD | G17: SDA | J17: 1,000,000,000 | W17: 185 | X17: M
D18: 2 | E18: Irigasi Gintung Limbangan Watumalang | F18: APBD | G18: SDA | I18: Watumalang | J18: 500,000,000 | W18: 75 | X18: M
D19: 3 | E19: SALURAN IRIGASI DI BANCET DESA. CANDI MULYO KEC. KERTEK , Kab. Wonosobo | F19: APBD | G19: SDA | I19: Kertek | J19: 200,000,000 | W19: 200 | X19: M
D20: 4 | E20: Pembangunan Irigasi DI Sigupit Desa Karangrejo Kecamatan Selomerto | F20: APBD | G20: SDA | I20: Selomerto | J20: 200,000,000 | W20: 175 | X20: M
D21: 5 | E21: PEMBANGUNAN SALURAN IRIGASI DI SIPENATUS DESA. REJOSARI KEC. KALIKAJAR, Kab. Wonosobo | F21: APBD | G21: SDA | I21: Kalikajar | J21: 200,000,000 | W21: 75 | X21: M
D22: 6 | E22: pembangunan refilitasi/senderan irigasi DI pahat kelurahan kertek kampung campursari RW02 kec.Kertek, Kab. Wonosobo | F22: APBD | G22: SDA | I22: Kertek | J22: 200,000,000 | W22: 165 | X22: M
D23: 7 | E23: pembangunan refilitasi irigasi DI Geblok kelurahan miplak kec. wonosobo, Kab. Wonosobo | F23: APBD | G23: SDA | I23: Wonosobo | J23: 200,000,000 | W23: 70 | X23: M
D24: 8 | E24: REHABILITASI DI KALITULANG | F24: APBD | G24: SDA | I24: Watumalang | J24: 100,000,000 | W24: 160 | X24: M
D25: 9 | E25: Pembangunan Bendung Penartan Sungai Wanganaji Kelurahan Kalianget Kecamatan Wonosobo | F25: APBD | G25: SDA | I25: Wonosobo | J25: 100,000,000 | W25: 85 | X25: M
D26: 10 | E26: Rehabilitasi Saluran dan Senderan Kali Alur DI Mangli Kelurahan Kejiwan Kecamatan Wonosobo | F26: APBD | G26: SDA | I26: Wonosobo | J26: 200,000,000 | W26: 125 | X26: M
D27: 11 | E27: Rahabilitasi Irigasi sikudi Kalimendong Kecamatan Leksono | F27: APBD | G27: SDA | I27: Leksono | J27: 200,000,000 | W27: 130 | X27: M
A28: C | E28: PROGRAM PENGELOLAAN DAN PENGEMBANGAN SISTEM PENYEDIAAN AIR MINUM | J28: =SUM(#REF!,#REF!) -> 
D29: 2 | E29: Air bersih mojosari dk wonoyoso mojotengah | F29: APBD | G29: CK | I29: Mojotengah | J29: 250,000,000 | W29: 220 | X29: SR
D30: 3 | E30: Air bersih dk banaran kayugiyang garung | F30: APBD | G30: CK | I30: Garung | J30: 100,000,000 | W30: 200 | X30: SR
D31: 4 | E31: Perluasan SPAM Jaringan Perpipaan Desa Tieng Kec. Kejajar | F31: APBD | G31: CK | I31: Kejajar | J31: 250,000,000 | W31: 240 | X31: SR
D32: 5 | E32: Perluasan SPAM Jaringan Perpipaan Desa Damarkasiyan Kec. Kertek | F32: APBD | G32: CK | I32: Kertek | J32: 250,000,000 | W32: 150 | X32: SR
A34: D | E34: PROGRAM PENGELOLAAN DAN PENGEMBANGAN SISTEM AIR LIMBAH | J34: =SUM(#REF!,#REF!,#REF!,#REF!) -> 
D35: 1 | E35: Pembangunan Tangki Septik Komunal Pondok Pesantren Miftahul Huda Siwatu Bumiroso | F35: APBD | G35: CK | I35: Watumalang | J35: 133,500,000 | W35: 25 | X35: SR
D36: 2 | E36: Pembangunan Tangki Septik Komunal Desa Dieng Kec. Kejajar | F36: APBD | G36: CK | I36: Kejajar | J36: 150,000,000 | W36: 25 | X36: SR
D37: 3 | E37: Pembangunan Tangki Septik Individu Desa Dempel Kec. Kalibawang | F37: APBD | G37: CK | I37: Kalibawang | J37: 150,000,000 | W37: 34 | X37: SR
D38: 4 | E38: Pembangunan Tangki Septik Individu Desa Butuh Kec. Kalikajar | F38: APBD | G38: CK | I38: Kalikajar | J38: 150,000,000 | W38: 30 | X38: SR
D39: 5 | E39: Pembangunan Tangki Septik Individu Desa Tambi Kec. Kejajar | F39: APBD | G39: CK | I39: Kejajar | J39: 150,000,000 | W39: 30 | X39: SR
D40: 6 | E40: Pembangunan Tangki Septik Individu Desa Kapencar Kec. Kertek | F40: APBD | G40: CK | I40: Kertek | J40: 150,000,000 | W40: 30 | X40: SR
A41: H | E41: PROGRAM PENYELENGGARAAN JALAN | J41: =SUM(#REF!,#REF!,#REF!,#REF!,#REF!,#REF!,#REF!,#REF!,#REF!) -> 
D42: 1 | E42: Penggantian Jembatan Gunturmadu | F42: APBD | G42: BM | H42: Gunturmadu | I42: Mojotengah | J42: 2,750,000,000 | W42: 18 | X42: M
D43: 2 | E43: Peningkatan Jembatan Kali Songgoluwang (Lanjutan) | F43: APBD | G43: BM | H43: Manggis - Tlogogundang | I43: Sukoharjo/Leksono | J43: 650,000,000 | W43: 12 | X43: m
D44: 3 | E44: Pembangunan Jembatan Ruas Jalan Banyukembar - Pasuruhan Kec. Watumalang | F44: APBD | G44: BM | I44: Watumalang | J44: 200,000,000 | W44: 6 | X44: m
D45: 4 | E45: Pembangunan Jembatan Sigandu Sungai Kali Kawung Sumberwulan Kecamatan Selomerto | F45: APBD | G45: BM | I45: Selomerto | J45: 200,000,000 | W45: 6 | X45: m
D46: 1 | E46: Peningkatan Jalan Sumbersari - Binangun | F46: APBD | G46: BM | I46: Watumalang | J46: 2,750,000,000 | W46: 0.800 | X46: km
D47: 2 | E47: Peningkatan Jalan Pasar lawas - Bts. Kab Banjarnegara | F47: APBD | G47: BM | I47: Watumalang | J47: 500,000,000 | W47: 0.134 | X47: km
D48: 3 | E48: Peningkatan Jalan Tlogo - Banyukembar | F48: APBD | G48: BM | I48: Sukoharjo/Watumalang | J48: 2,500,000,000 | W48: 0.400 | X48: km
D49: 4 | E49: Peningkatan Jalan Pasuruhan - Banyukembar | F49: APBD | G49: BM | I49: Watumalang | J49: 500,000,000 | W49: 1.200 | X49: km
D50: 5 | E50: Peningkatan Jalan Sukoharjo - Gunungtugel | F50: APBD | G50: BM | I50: Sukoharjo | J50: 500,000,000 | W50: 0.800 | X50: km
D51: 6 | E51: Peningkatan Jalan Kalilang - Bulu | F51: APBD | G51: BM | I51: Garung | J51: 2,250,000,000 | W51: 0.920 | X51: km
D52: 7 | E52: Peningkatan Jalan Garung - Kalilang | F52: APBD | G52: BM | I52: Garung | J52: 1,400,000,000 | W52: 1.400 | X52: km
D53: 8 | E53: Peningkatan Jalan Beran - Warangan | F53: APBD | G53: BM | I53: Kepil | J53: 700,000,000 | W53: 1.000 | X53: km
D54: 9 | E54: Peningkatan Jalan Tanjungsari-Marongsari | F54: APBD | G54: BM | I54: Sapuran | J54: 3,250,000,000 | W54: 0.800 | X54: km
D55: 10 | E55: Peningkatan Jalan Larangan- Gambaran | F55: APBD | G55: BM | I55: Kaliwiro | J55: 1,850,000,000 | W55: 1.200 | X55: km
D56: 11 | E56: Peningkatan Jalan Tanjunganom - Grugu | F56: APBD | G56: BM | I56: Kaliwiro | J56: 500,000,000 | W56: 1.200 | X56: km
D57: 12 | E57: Peningkatan Jalan Pucungkerep - Ngasinan | F57: APBD | G57: BM | I57: Kaliwiro | J57: 500,000,000 | W57: 1.400 | X57: km
D58: 13 | E58: Peningkatan Jalan Mojosari - Lumajang | F58: APBD | G58: BM | I58: Mojotengah/Watumalng | J58: 500,000,000 | W58: 0.600 | X58: km
D59: 14 | E59: Peningkatan Jalan Panerusan - Karanggedang (Batas Kab Purworejo) | F59: APBD | G59: BM | I59: Wadaslintang | J59: 500,000,000 | W59: 0.600 | X59: km
D60: 15 | E60: Peningkatan Jalan Mudal - Candirejo | F60: APBD | G60: BM | I60: Mojotengah | J60: 500,000,000 | W60: 0.600 | X60: km
D61: 16 | E61: Peningkatan Jalan Dempel - Margolangu | F61: APBD | G61: BM | I61: Kalibawang | J61: 500,000,000 | W61: 0.600 | X61: km
D62: 17 | E62: Peningkatan Jalan Ngadisono - Gambaran | F62: APBD | G62: BM | I62: Kaliwiro | J62: 750,000,000
D63: 18 | E63: Peningkatan Jalan Gunungtugel - Kajeksan | F63: APBD | G63: BM | I63: Sukoharjo | J63: 1,000,000,000
D64: 19 | E64: PENINGKATAN JALAN 59 SIYONO - SEMAYU | F64: DAK | G64: BM | I64: Selomerto | J64: 2,298,835,000 | W64: 0.568 | X64: km
D65: 20 | E65: PENINGKATAN JALAN 85 JENGKOL - TLOGO | F65: DAK | G65: BM | I65: Garung | J65: 4,027,908,000 | W65: 5.899 | X65: km
D66: 21 | E66: PENINGKATAN JALAN 99 KALIBEBER - DERODUWUR | F66: DAK | G66: BM | I66: Mojotengah | J66: 8,014,077,500 | W66: 1.200 | X66: km
D67: 22 | E67: PENIGKATAN JALAN 130 KALIKAJAR - PERBOTO | F67: DAK | G67: BM | I67: Kalikajar | J67: 5,643,687,500 | W67: 7.950 | X67: km
D68: 23 | E68: PENIGKATAN JALAN 257 KURIPAN - WONOKAMPIR | F68: DAK | G68: BM | I68: Watumalang | J68: 9,068,070,000
D69: 24 | E69: Aspalisasi jalan Ruas 208 Kalisat - Plunjaran di Plunjaran Desa Plunjaran Kec. Wadaslintang | F69: APBD | G69: BM | I69: Wadaslintang | J69: 190,000,000
D70: 25 | E70: JALAN SEMAYU bojasari ruas 69 pengaspalan jalan | F70: APBD | G70: BM | I70: Selomerto | J70: 200,000,000
D71: 26 | E71: PENINGKATAN JALAN SEMEN - GENTING, KECAMATAN KALIKAJAR | F71: APBD | G71: BM | I71: Kalikajar | J71: 200,000,000
D72: 27 | E72: PENINGKATAN JALAN RUAS NO 82 KALILANG - BULU | F72: APBD | G72: BM | I72: Garung | J72: 200,000,000
D73: 28 | E73: PENINGKATAN JALAN DAN DRAINASE RUAS NO 188 KAYUBIMA - KALIKUTO ( BNA ) | F73: APBD | G73: BM | I73: Kaliwiro | J73: 200,000,000
D74: 29 | E74: Aspal Jalan Kabupaten Ruas 62 Banjar - Kasiyan Desa Damarkasiyan Kecamatan Kertek | F74: APBD | G74: BM | I74: Kertek | J74: 200,000,000
D75: 30 | E75: Aspal Jalan Kabupaten Ruas 58 Sudungdewo - Bejiarum | F75: APBD | G75: BM | I75: Kertek | J75: 200,000,000
D76: 31 | E76: Aspal Jalan ruas 213 Kepunding Kalilaras Desa Ngalian Kecamatan Wadaslintang | F76: APBD | G76: BM | I76: Wadaslintang | J76: 150,000,000
D77: 32 | E77: Peningkatan Jalan Kemiriombo, katilampa, Tempurejo | F77: APBD | G77: BM | I77: Kalibawang | J77: 150,000,000
D78: 33 | E78: Peningkatan Jalan Mergolangu - Depok di Wanasari | F78: APBD | G78: BM | I78: Kalibawang | J78: 150,000,000
D79: 24 | E79: PENGASPALAN JALAN SITIHARJO WONOKROMO NO RUAS 78 | F79: APBD | G79: BM | I79: Garung | J79: 150,000,000
D80: 25 | E80: SENDERAN BAHU JALAN DAN DRAINASE KALIKAJAR-PERBOTO RUAS JALAN NO 130 DUSUN NASINAN KELURAHAN KALIKAJAR KECAMATAN KALIKAJAR, Kab. Wonosobo | F80: APBD | G80: BM | I80: Kalikajar | J80: 200,000,000
D81: 26 | E81: PEMBANGUNAN DRAINASE KERTEK- PONGGOYUDAN NO RUAS 60 DUSUN KLILIN DESA. SINDUPATEN KEC. KERTEK KAB. WONOSOBO | F81: APBD | G81: BM | I81: Kertek | J81: 200,000,000
D82: 27 | E82: ASPAL JALAN RIMPAK- BATURSARI RUAS NO 127 DESA. RIMPAK KEC. SAPURAN , Kab. Wonosobo | F82: APBD | G82: BM | I82: Sapuran | J82: 200,000,000
D83: 28 | E83: PEMBANGUNAN SENDERAN JALAN RUAS 137 KEMBARAN - TEGALOMBO (DUSUN WONOKRIYO), Kab. Wonosobo | F83: APBD | G83: BM | I83: Kalikajar | J83: 200,000,000
D84: 29 | E84: ASPAL JALAN SIRUKEM- BERAN NO RUAS 164 DESA. BERAN KEC. KEPIL, Kab. Wonosobo | F84: APBD | G84: BM | I84: Kepil | J84: 200,000,000
D85: 30 | E85: Peningkatan Jalan Kabupaten Ruas 127 Rimpak - Batursari Kec. Sapuran | F85: APBD | G85: BM | I85: Sapuran | J85: 200,000,000
D86: 31 | E86: Peningkatan Jalan Kabupaten Ruas Kembaran - Banyumudal Kec. Sapuran | F86: APBD | G86: BM | I86: Sapuran | J86: 150,000,000
D87: 32 | E87: Peningkatan Jalan Ruas Jalan 202 Trimulyo - Lancar Kecamatan Wadaslintang | F87: APBD | G87: BM | I87: Wadaslintang | J87: 200,000,000
D88: 33 | E88: Jalan Lamuk - Kalikuning ruas 140 Kecamatan Kalikajar dalam kondisi rusak | F88: APBD | G88: BM | I88: Kalikajar | J88: 150,000,000
D89: 27 | E89: jalan ruas 53 ngadikusuman menuju tlogodalem kondisi rusak | F89: APBD | G89: BM | I89: Kertek | J89: 200,000,000
D90: 28 | E90: Aspal Ruas 95 Jalan Kalibeber Slukatan Desa Slukatan Kecamatan Mojotengah Kab. Wonosobo | F90: APBD | G90: BM | I90: Mojotengah | J90: 200,000,000
D91: 29 | E91: Betonisasi Jalan Ruas 96 Jalan Lumajang-Mojosari Blok Kalitelu | F91: APBD | G91: BM | I91: Mojotengah/Watumalng | J91: 150,000,000
D92: 30 | E92: Aspal Jalan Banaran - Lamuk Ruas 156 Desa Wonosari Kecamatan Kalikajar | F92: APBD | G92: BM | I92: Kalikajar | J92: 200,000,000
D93: 31 | E93: Aspal Jalan Ruas Sadan-Butuh Kidul Ruas 161 Blok Pleregan Desa Butuh Kidul Kecamatan Kalikajar | F93: APBD | G93: BM | I93: Kalikajar | J93: 200,000,000
D94: 32 | E94: Aspal Jalan Perboto - kedalon No. Ruas 155 blok Njemparang Desa Perboto Kecamatan Kalikajar | F94: APBD | G94: BM | I94: Kalikajar | J94: 200,000,000
D95: 33 | E95: Aspal jalan Kalikarung - Kalibawang Ruas 120 Kalikarung Kec.Kalibawang | F95: APBD | G95: BM | I95: Kalibawang | J95: 200,000,000
D96: 34 | E96: Aspal jalan Kalikarung -Pengarengan Ruas 215 Kec. Kalibawang | F96: APBD | G96: BM | I96: Kalibawang | J96: 200,000,000
D97: 35 | E97: Aspal jalan kalibawang - tempurejo Ruas 141 kec.Kalibawang | F97: APBD | G97: BM | I97: Kalibawang | J97: 200,000,000
D98: 36 | E98: Pembangunan Aspal Jalan Pagerejo-Purwojati Ruas 65 Blok Dusun Gumawang Desa Pagerejo Kec. Kertek | F98: APBD | G98: BM | I98: Kertek | J98: 200,000,000
D99: 37 | E99: Aspal Jalan Ruas Kedalon Banyu Mudal no. 154 Blok Semen-Kwadungan Desa purwojiwo Kec. Kalikajar | F99: APBD | G99: BM | I99: Kalikajar | J99: 200,000,000
D100: 38 | E100: Pembangunan Jalan Beton Ruas Luwihan Bakalan No. Ruas 158 blok Bakalan Desa Bowongso Kec. Kalikajar | F100: APBD | G100: BM | I100: Kalikajar | J100: 200,000,000
D101: 39 | E101: Peningkatan Jalan Bugangan - Bangsri Blok Wonokero Kecamatan Wonosobo Ruas 48 | F101: APBD | G101: BM | I101: Wonosobo | J101: 200,000,000
D102: 40 | E102: Aspal jalan Lumajang Mojosari di Dusun Deles Ruas 96 | F102: APBD | G102: BM | I102: Mojotengah | J102: 200,000,000
D103: 41 | E103: Aspal Jalan Ruas 264 Wonokampir - Gedangsari- Pagedangan - Mutisari | F103: APBD | G103: BM | I103: Watumalang | J103: 200,000,000
D104: 42 | E104: Aspal Jalan Ruas 160 Gondowulan - Kepil di Desa Gondowulan | F104: APBD | G104: BM | I104: Kepil | J104: 150,000,000
D105: 43 | E105: Pembangunan Senderan dan Aspal Jalan Gadingrejo - Bener Ruas 162 | F105: APBD | G105: BM | I105: Kepil | J105: 200,000,000
D106: 44 | E106: Aspal Jalan Bojongan Jangkrikan Ruas 170 | F106: APBD | G106: BM | I106: Kepil | J106: 150,000,000
D107: 45 | E107: Aspal Jalan Beran Rimpak Ruas 163 | F107: APBD | G107: BM | I107: Kepil | J107: 150,000,000
D108: 2 | E108: Rehabilitasi Jalan Diwek - Kaliputih, Desa Balekambang | F108: APBD | G108: BM | I108: Selomerto | J108: 300,000,000 | W108: 0.800 | X108: km
D109: 3 | E109: Rehabilitasi Jalan Garung - Boralan - Kayugiyang | F109: APBD | G109: BM | I109: Garung | J109: 300,000,000 | W109: 0.134 | X109: km
D110: 4 | E110: Rehabilitasi jalan selokromo krasak | F110: APBD | G110: BM | I110: Leksono/Selomerto | J110: 800,000,000 | W110: 0.400 | X110: km
D111: 5 | E111: Aspal Jalan Dusun Selamaya Ruas 224 Kajeksan - Gunung Tugel Kec. Sukoharjo | F111: APBD | G111: BM | I111: Sukoharjo | J111: 200,000,000 | W111: 0.400 | X111: km
D112: 6 | E112: Peningkatan Jalan Ruas 116 Sapuran - Marongsari Kecamatan Sapuran Kabupaten Wonosobo | F112: APBD | G112: BM | I112: Sapuran | J112: 150,000,000 | W112: 0.800 | X112: km
D113: 7 | E113: Pembangunan Drainase dan Senderan Rt. 3 Rw 2 Kp. Wonoroto Kel. Wonoroto Kec. Watumalang | F113: APBD | G113: BM | I113: Watumalang | J113: 100,000,000 | W113: 1.200 | X113: km
D114: 8 | E114: Pembangunan Drainase Jalan Utama Kejiwan Kuripan Blok Petir | F114: APBD | G114: BM | I114: Watumalang | J114: 150,000,000 | W114: 0.800 | X114: km
D115: 9 | E115: Pembangunan rehabilitasi aspal jalan welahan- banyukembar kecamatan watumalang | F115: APBD | G115: BM | I115: Watumalang | J115: 200,000,000 | W115: 0.200 | X115: km
D116: 10 | E116: Aspal Jalan Ruas 79 Bakalan ke Boralan Blok Dusun Bakalan Desa Siwuran Kecamatan Garung | F116: APBD | G116: BM | I116: Garung | J116: 200,000,000 | W116: 1.160 | X116: km
D117: 11 | E117: Peningkatan Jalan Blok Wonolobo Desa Manggis | F117: APBD | G117: BM | I117: Leksono | J117: 200,000,000 | W117: 0.238 | X117: km
D118: 12 | E118: rehabilitasi aspal jalan ruas 202 desa trimulyo lancar kecamatan wadaslintang | F118: APBD | G118: BM | I118: Wadaslintang | J118: 200,000,000 | W118: 0.127 | X118: km
D119: 13 | E119: Rehabilitasi Jalan Ngadikusuman-Tlogodalem (nomor ruas 53) | F119: APBD | G119: BM | I119: Kertek | J119: 240,000,000
D120: 14 | E120: Rehabilitasi Jalan ruas Krasak-Winongsari nomor ruas 64 | F120: APBD | G120: BM | I120: Selmerto/kaliwiro | J120: 245,000,000
D121: 15 | E121: Rehabilitasi Jalan ruas Leksono - Kalimendong nomor ruas 241 | F121: APBD | G121: BM | I121: Leksono | J121: 283,395,000
D122: 16 | E122: Rehabilitasi Jalan ruas Mergosari - Kupangan nomor 219 | F122: APBD | G122: BM | I122: Sukoharjo | J122: 245,000,000
D123: 17 | E123: Rehabilitasi Jalan ruas Sidojoyo - Bangsri No ruas 31 | F123: APBD | G123: BM | I123: Wonosobo | J123: 245,000,000

Sheet Per Kecamatan
A1: KEGIATAN FISIK 2025 PER KECAMATAN
A2: DINAS PEKERJAAN UMUM DAN PENATAAN RUANG
A3: KABUPATEN WONOSOBO
B5: BULAN JANUARI 2025
A6: NO | B6: JENIS PEKERJAAN | C6: SUMBER DANA | D6: BIDANG | E6: DESA | F6: KECAMATAN | G6: ANGGARAN (Rp) | I6: REKANAN | J6: KONTRAK | M6: JANGKA WAKTU | O6: RENCANA KAS | Q6: REALISASI KEUANGAN | S6: REALISASI FISIK | T6: OUTPUT | V6: KETERANGAN
H7: PERUBAHAN | J7: TGL KONTRAK | K7: NO KONTRAK | L7: NILAI KONTRAK | M7: MULAI | N7: SELESAI | O7: Jumlah (Rp) | P7: % | Q7: Jumlah (Rp) | R7: % | S7: % | T7: OUTPUT | U7: SATUAN
B8: 2 | C8: 3 | D8: 4 | E8: 5 | F8: 5 | G8: 6 | H8: 8 | I8: 9 | J8: 10 | K8: 11 | L8: 12 | M8: 13 | N8: 14 | O8: 15 | Q8: 16 | S8: 17 | T8: 18 | V8: 19
B9: DINAS PEKERJAAN UMUM DAN PENATAAN RUANG | G9: =SUM(G10,G19,G27,G40,G46,G50,G57,G68,G73,G83,G89,G96,G103,G109,G122) -> 70,934,473,017 | Q9: =SUM(#REF!,#REF!,#REF!,#REF!,#REF!,#REF!,#REF!,#REF!,#REF!,#REF!) ->  | R9: =Q9/G9*100 -> 
A10: A | B10: KECAMATAN GARUNG | G10: =SUM(G11:G18) -> 8,627,908,000
A11: 1 | B11: Air bersih dk banaran kayugiyang garung | C11: APBD | D11: CK | F11: Garung | G11: 100,000,000
A12: 2 | B12: Peningkatan Jalan Kalilang - Bulu | C12: APBD | D12: BM | F12: Garung | G12: 2,250,000,000
A13: 3 | B13: Peningkatan Jalan Garung - Kalilang | C13: APBD | D13: BM | F13: Garung | G13: 1,400,000,000
A14: 4 | B14: PENINGKATAN JALAN 85 JENGKOL - TLOGO | C14: DAK | D14: BM | F14: Garung | G14: 4,027,908,000 | T14: 185 | U14: M
A15: 5 | B15: PENINGKATAN JALAN RUAS NO 82 KALILANG - BULU | C15: APBD | D15: BM | F15: Garung | G15: 200,000,000 | T15: 75 | U15: M
A16: 6 | B16: PENGASPALAN JALAN SITIHARJO WONOKROMO NO RUAS 78 | C16: APBD | D16: BM | F16: Garung | G16: 150,000,000 | T16: 200 | U16: M
A17: 7 | B17: Rehabilitasi Jalan Garung - Boralan - Kayugiyang | C17: APBD | D17: BM | F17: Garung | G17: 300,000,000 | T17: 175 | U17: M
A18: 8 | B18: Aspal Jalan Ruas 79 Bakalan ke Boralan Blok Dusun Bakalan Desa Siwuran Kecamatan Garung | C18: APBD | D18: BM | F18: Garung | G18: 200,000,000 | T18: 75 | U18: M
A19: B | B19: KECAMATAN KALIBAWANG | G19: =SUM(G20:G26) -> 1,550,000,000
A20: 1 | B20: Pembangunan Tangki Septik Individu Desa Dempel Kec. Kalibawang | C20: APBD | D20: CK | F20: Kalibawang | G20: 150,000,000 | T20: 165 | U20: M
A21: 2 | B21: Peningkatan Jalan Dempel - Margolangu | C21: APBD | D21: BM | F21: Kalibawang | G21: 500,000,000 | T21: 70 | U21: M
A22: 3 | B22: Peningkatan Jalan Kemiriombo, katilampa, Tempurejo | C22: APBD | D22: BM | F22: Kalibawang | G22: 150,000,000 | T22: 160 | U22: M
A23: 4 | B23: Peningkatan Jalan Mergolangu - Depok di Wanasari | C23: APBD | D23: BM | F23: Kalibawang | G23: 150,000,000 | T23: 85 | U23: M
A24: 5 | B24: Aspal jalan Kalikarung - Kalibawang Ruas 120 Kalikarung Kec.Kalibawang | C24: APBD | D24: BM | F24: Kalibawang | G24: 200,000,000 | T24: 125 | U24: M
A25: 6 | B25: Aspal jalan Kalikarung -Pengarengan Ruas 215 Kec. Kalibawang | C25: APBD | D25: BM | F25: Kalibawang | G25: 200,000,000 | T25: 130 | U25: M
A26: 7 | B26: Aspal jalan kalibawang - tempurejo Ruas 141 kec.Kalibawang | C26: APBD | D26: BM | F26: Kalibawang | G26: 200,000,000 | T26: 220 | U26: SR
A27: C | B27: KECAMATAN KALIKAJAR | G27: =SUM(G28:G39) -> 7,743,687,500
A28: 1 | B28: PEMBANGUNAN SALURAN IRIGASI DI SIPENATUS DESA. REJOSARI KEC. KALIKAJAR, Kab. Wonosobo | C28: APBD | D28: SDA | F28: Kalikajar | G28: 200,000,000 | T28: 200 | U28: SR
A29: 2 | B29: Pembangunan Tangki Septik Individu Desa Butuh Kec. Kalikajar | C29: APBD | D29: CK | F29: Kalikajar | G29: 150,000,000 | T29: 240 | U29: SR
A30: 3 | B30: PENIGKATAN JALAN 130 KALIKAJAR - PERBOTO | C30: DAK | D30: BM | F30: Kalikajar | G30: 5,643,687,500 | T30: 150 | U30: SR
A31: 4 | B31: PENINGKATAN JALAN SEMEN - GENTING, KECAMATAN KALIKAJAR | C31: APBD | D31: BM | F31: Kalikajar | G31: 200,000,000 | T31: 25 | U31: SR
A32: 5 | B32: SENDERAN BAHU JALAN DAN DRAINASE KALIKAJAR-PERBOTO RUAS JALAN NO 130 DUSUN NASINAN KELURAHAN KALIKAJAR KECAMATAN KALIKAJAR, Kab. Wonosobo | C32: APBD | D32: BM | F32: Kalikajar | G32: 200,000,000 | T32: 25 | U32: SR
A33: 6 | B33: PEMBANGUNAN SENDERAN JALAN RUAS 137 KEMBARAN - TEGALOMBO (DUSUN WONOKRIYO), Kab. Wonosobo | C33: APBD | D33: BM | F33: Kalikajar | G33: 200,000,000 | T33: 34 | U33: SR
A34: 7 | B34: Jalan Lamuk - Kalikuning ruas 140 Kecamatan Kalikajar dalam kondisi rusak | C34: APBD | D34: BM | F34: Kalikajar | G34: 150,000,000 | T34: 30 | U34: SR
A35: 8 | B35: Aspal Jalan Banaran - Lamuk Ruas 156 Desa Wonosari Kecamatan Kalikajar | C35: APBD | D35: BM | F35: Kalikajar | G35: 200,000,000 | T35: 30 | U35: SR
A36: 9 | B36: Aspal Jalan Ruas Sadan-Butuh Kidul Ruas 161 Blok Pleregan Desa Butuh Kidul Kecamatan Kalikajar | C36: APBD | D36: BM | F36: Kalikajar | G36: 200,000,000 | T36: 30 | U36: SR
A37: 10 | B37: Aspal Jalan Perboto - kedalon No. Ruas 155 blok Njemparang Desa Perboto Kecamatan Kalikajar | C37: APBD | D37: BM | F37: Kalikajar | G37: 200,000,000 | T37: 18 | U37: M
A38: 11 | B38: Aspal Jalan Ruas Kedalon Banyu Mudal no. 154 Blok Semen-Kwadungan Desa purwojiwo Kec. Kalikajar | C38: APBD | D38: BM | F38: Kalikajar | G38: 200,000,000 | T38: 12 | U38: m
A39: 12 | B39: Pembangunan Jalan Beton Ruas Luwihan Bakalan No. Ruas 158 blok Bakalan Desa Bowongso Kec. Kalikajar | C39: APBD | D39: BM | F39: Kalikajar | G39: 200,000,000 | T39: 6 | U39: m
A40: D | B40: KECAMATAN KALIWIRO | G40: =SUM(G41:G45) -> 3,800,000,000
A41: 1 | B41: Peningkatan Jalan Larangan- Gambaran | C41: APBD | D41: BM | F41: Kaliwiro | G41: 1,850,000,000 | T41: 6 | U41: m
A42: 2 | B42: Peningkatan Jalan Tanjunganom - Grugu | C42: APBD | D42: BM | F42: Kaliwiro | G42: 500,000,000 | T42: 0.800 | U42: km
A43: 3 | B43: Peningkatan Jalan Pucungkerep - Ngasinan | C43: APBD | D43: BM | F43: Kaliwiro | G43: 500,000,000 | T43: 0.134 | U43: km
A44: 4 | B44: Peningkatan Jalan Ngadisono - Gambaran | C44: APBD | D44: BM | F44: Kaliwiro | G44: 750,000,000 | T44: 0.400 | U44: km
A45: 5 | B45: PENINGKATAN JALAN DAN DRAINASE RUAS NO 188 KAYUBIMA - KALIKUTO ( BNA ) | C45: APBD | D45: BM | F45: Kaliwiro | G45: 200,000,000 | T45: 1.200 | U45: km
A46: E | B46: KECAMATAN KEJAJAR | G46: =SUM(G47:G49) -> 550,000,000
A47: 1 | B47: Perluasan SPAM Jaringan Perpipaan Desa Tieng Kec. Kejajar | C47: APBD | D47: CK | F47: Kejajar | G47: 250,000,000 | T47: 0.800 | U47: km
A48: 2 | B48: Pembangunan Tangki Septik Komunal Desa Dieng Kec. Kejajar | C48: APBD | D48: CK | F48: Kejajar | G48: 150,000,000 | T48: 0.920 | U48: km
A49: 3 | B49: Pembangunan Tangki Septik Individu Desa Tambi Kec. Kejajar | C49: APBD | D49: CK | F49: Kejajar | G49: 150,000,000 | T49: 1.400 | U49: km
A50: F | B50: KECAMATAN KEPIL | G50: =SUM(G51:G56) -> 1,550,000,000
A51: 1 | B51: Peningkatan Jalan Beran - Warangan | C51: APBD | D51: BM | F51: Kepil | G51: 700,000,000 | T51: 1.000 | U51: km
A52: 2 | B52: ASPAL JALAN SIRUKEM- BERAN NO RUAS 164 DESA. BERAN KEC. KEPIL, Kab. Wonosobo | C52: APBD | D52: BM | F52: Kepil | G52: 200,000,000 | T52: 0.800 | U52: km
A53: 3 | B53: Aspal Jalan Ruas 160 Gondowulan - Kepil di Desa Gondowulan | C53: APBD | D53: BM | F53: Kepil | G53: 150,000,000 | T53: 1.200 | U53: km
A54: 4 | B54: Pembangunan Senderan dan Aspal Jalan Gadingrejo - Bener Ruas 162 | C54: APBD | D54: BM | F54: Kepil | G54: 200,000,000 | T54: 1.200 | U54: km
A55: 5 | B55: Aspal Jalan Bojongan Jangkrikan Ruas 170 | C55: APBD | D55: BM | F55: Kepil | G55: 150,000,000 | T55: 1.400 | U55: km
A56: 6 | B56: Aspal Jalan Beran Rimpak Ruas 163 | C56: APBD | D56: BM | F56: Kepil | G56: 150,000,000 | T56: 0.600 | U56: km
A57: G | B57: KECAMATAN KERTEK | G57: =SUM(G58:V67) -> 2,040,000,017
A58: 1 | B58: SALURAN IRIGASI DI BANCET DESA. CANDI MULYO KEC. KERTEK , Kab. Wonosobo | C58: APBD | D58: SDA | F58: Kertek | G58: 200,000,000 | T58: 0.600 | U58: km
A59: 2 | B59: pembangunan refilitasi/senderan irigasi DI pahat kelurahan kertek kampung campursari RW02 kec.Kertek, Kab. Wonosobo | C59: APBD | D59: SDA | F59: Kertek | G59: 200,000,000 | T59: 0.600 | U59: km
A60: 3 | B60: Perluasan SPAM Jaringan Perpipaan Desa Damarkasiyan Kec. Kertek | C60: APBD | D60: CK | F60: Kertek | G60: 250,000,000 | T60: 0.600 | U60: km
A61: 4 | B61: Pembangunan Tangki Septik Individu Desa Kapencar Kec. Kertek | C61: APBD | D61: CK | F61: Kertek | G61: 150,000,000
A62: 5 | B62: Aspal Jalan Kabupaten Ruas 62 Banjar - Kasiyan Desa Damarkasiyan Kecamatan Kertek | C62: APBD | D62: BM | F62: Kertek | G62: 200,000,000
A63: 6 | B63: Aspal Jalan Kabupaten Ruas 58 Sudungdewo - Bejiarum | C63: APBD | D63: BM | F63: Kertek | G63: 200,000,000 | T63: 0.568 | U63: km
A64: 7 | B64: PEMBANGUNAN DRAINASE KERTEK- PONGGOYUDAN NO RUAS 60 DUSUN KLILIN DESA. SINDUPATEN KEC. KERTEK KAB. WONOSOBO | C64: APBD | D64: BM | F64: Kertek | G64: 200,000,000 | T64: 5.899 | U64: km
A65: 8 | B65: jalan ruas 53 ngadikusuman menuju tlogodalem kondisi rusak | C65: APBD | D65: BM | F65: Kertek | G65: 200,000,000 | T65: 1.200 | U65: km
A66: 9 | B66: Pembangunan Aspal Jalan Pagerejo-Purwojati Ruas 65 Blok Dusun Gumawang Desa Pagerejo Kec. Kertek | C66: APBD | D66: BM | F66: Kertek | G66: 200,000,000 | T66: 7.950 | U66: km
A67: 10 | B67: Rehabilitasi Jalan Ngadikusuman-Tlogodalem (nomor ruas 53) | C67: APBD | D67: BM | F67: Kertek | G67: 240,000,000
A68: H | B68: KECAMATAN LEKSONO | G68: =SUM(G69:G72) -> 1,483,395,000
A69: 1 | B69: Rahabilitasi Irigasi sikudi Kalimendong Kecamatan Leksono | C69: APBD | D69: SDA | F69: Leksono | G69: 200,000,000
A70: 2 | B70: Peningkatan Jalan Blok Wonolobo Desa Manggis | C70: APBD | D70: BM | F70: Leksono | G70: 200,000,000
A71: 3 | B71: Rehabilitasi Jalan ruas Leksono - Kalimendong nomor ruas 241 | C71: APBD | D71: BM | F71: Leksono | G71: 283,395,000
A72: 4 | B72: Rehabilitasi jalan selokromo krasak | C72: APBD | D72: BM | F72: Leksono/Selomerto | G72: 800,000,000
A73: I | B73: KECAMATAN MOJOTENGAH | G73: =SUM(G74:G82) -> 12,764,077,500
A74: 1 | B74: REHABILITASI AULA POLSEK MOJOTENGAH | C74: APBD | D74: SEK | F74: Mojotengah | G74: 200,000,000
A75: 2 | B75: Air bersih mojosari dk wonoyoso mojotengah | C75: APBD | D75: CK | F75: Mojotengah | G75: 250,000,000
A76: 3 | B76: Penggantian Jembatan Gunturmadu | C76: APBD | D76: BM | E76: Gunturmadu | F76: Mojotengah | G76: 2,750,000,000
A77: 4 | B77: Peningkatan Jalan Mudal - Candirejo | C77: APBD | D77: BM | F77: Mojotengah | G77: 500,000,000
A78: 5 | B78: PENINGKATAN JALAN 99 KALIBEBER - DERODUWUR | C78: DAK | D78: BM | F78: Mojotengah | G78: 8,014,077,500
A79: 6 | B79: Aspal Ruas 95 Jalan Kalibeber Slukatan Desa Slukatan Kecamatan Mojotengah Kab. Wonosobo | C79: APBD | D79: BM | F79: Mojotengah | G79: 200,000,000
A80: 7 | B80: Aspal jalan Lumajang Mojosari di Dusun Deles Ruas 96 | C80: APBD | D80: BM | F80: Mojotengah | G80: 200,000,000
A81: 8 | B81: Peningkatan Jalan Mojosari - Lumajang | C81: APBD | D81: BM | F81: Mojotengah/Watumalng | G81: 500,000,000
A82: 9 | B82: Betonisasi Jalan Ruas 96 Jalan Lumajang-Mojosari Blok Kalitelu | C82: APBD | D82: BM | F82: Mojotengah/Watumalng | G82: 150,000,000
A83: J | B83: KECAMATAN SAPURAN | G83: =SUM(G84:G88) -> 3,950,000,000
A84: 1 | B84: Peningkatan Jalan Tanjungsari-Marongsari | C84: APBD | D84: BM | F84: Sapuran | G84: 3,250,000,000
A85: 2 | B85: ASPAL JALAN RIMPAK- BATURSARI RUAS NO 127 DESA. RIMPAK KEC. SAPURAN , Kab. Wonosobo | C85: APBD | D85: BM | F85: Sapuran | G85: 200,000,000
A86: 3 | B86: Peningkatan Jalan Kabupaten Ruas 127 Rimpak - Batursari Kec. Sapuran | C86: APBD | D86: BM | F86: Sapuran | G86: 200,000,000
A87: 4 | B87: Peningkatan Jalan Kabupaten Ruas Kembaran - Banyumudal Kec. Sapuran | C87: APBD | D87: BM | F87: Sapuran | G87: 150,000,000
A88: 5 | B88: Peningkatan Jalan Ruas 116 Sapuran - Marongsari Kecamatan Sapuran Kabupaten Wonosobo | C88: APBD | D88: BM | F88: Sapuran | G88: 150,000,000
A89: K | B89: KECAMATAN SELOMERTO | G89: =SUM(G90:G95) -> 3,443,835,000
A90: 1 | B90: Pembangunan Irigasi DI Sigupit Desa Karangrejo Kecamatan Selomerto | C90: APBD | D90: SDA | F90: Selomerto | G90: 200,000,000
A91: 2 | B91: Pembangunan Jembatan Sigandu Sungai Kali Kawung Sumberwulan Kecamatan Selomerto | C91: APBD | D91: BM | F91: Selomerto | G91: 200,000,000
A92: 3 | B92: PENINGKATAN JALAN 59 SIYONO - SEMAYU | C92: DAK | D92: BM | F92: Selomerto | G92: 2,298,835,000
A93: 4 | B93: JALAN SEMAYU bojasari ruas 69 pengaspalan jalan | C93: APBD | D93: BM | F93: Selomerto | G93: 200,000,000
A94: 5 | B94: Rehabilitasi Jalan Diwek - Kaliputih, Desa Balekambang | C94: APBD | D94: BM | F94: Selomerto | G94: 300,000,000
A95: 6 | B95: Rehabilitasi Jalan ruas Krasak-Winongsari nomor ruas 64 | C95: APBD | D95: BM | F95: Selmerto/kaliwiro | G95: 245,000,000
A96: L | B96: KECAMATAN SUKOHARJO | G96: =SUM(G97:G102) -> 5,095,000,000
A97: 1 | B97: Peningkatan Jalan Sukoharjo - Gunungtugel | C97: APBD | D97: BM | F97: Sukoharjo | G97: 500,000,000
A98: 2 | B98: Peningkatan Jalan Gunungtugel - Kajeksan | C98: APBD | D98: BM | F98: Sukoharjo | G98: 1,000,000,000
A99: 3 | B99: Aspal Jalan Dusun Selamaya Ruas 224 Kajeksan - Gunung Tugel Kec. Sukoharjo | C99: APBD | D99: BM | F99: Sukoharjo | G99: 200,000,000
A100: 4 | B100: Rehabilitasi Jalan ruas Mergosari - Kupangan nomor 219 | C100: APBD | D100: BM | F100: Sukoharjo | G100: 245,000,000
A101: 5 | B101: Peningkatan Jembatan Kali Songgoluwang (Lanjutan) | C101: APBD | D101: BM | E101: Manggis - Tlogogundang | F101: Sukoharjo/Leksono | G101: 650,000,000
A102: 6 | B102: Peningkatan Jalan Tlogo - Banyukembar | C102: APBD | D102: BM | F102: Sukoharjo/Watumalang | G102: 2,500,000,000
A103: M | B103: KECAMATAN WADASLINTANG | G103: =SUM(G104:G108) -> 1,240,000,000
A104: 1 | B104: Peningkatan Jalan Panerusan - Karanggedang (Batas Kab Purworejo) | C104: APBD | D104: BM | F104: Wadaslintang | G104: 500,000,000
A105: 2 | B105: Aspalisasi jalan Ruas 208 Kalisat - Plunjaran di Plunjaran Desa Plunjaran Kec. Wadaslintang | C105: APBD | D105: BM | F105: Wadaslintang | G105: 190,000,000
A106: 3 | B106: Aspal Jalan ruas 213 Kepunding Kalilaras Desa Ngalian Kecamatan Wadaslintang | C106: APBD | D106: BM | F106: Wadaslintang | G106: 150,000,000
A107: 4 | B107: Peningkatan Jalan Ruas Jalan 202 Trimulyo - Lancar Kecamatan Wadaslintang | C107: APBD | D107: BM | F107: Wadaslintang | G107: 200,000,000
A108: 5 | B108: rehabilitasi aspal jalan ruas 202 desa trimulyo lancar kecamatan wadaslintang | C108: APBD | D108: BM | F108: Wadaslintang | G108: 200,000,000
A109: N | B109: KECAMATAN WATUMALANG | G109: =SUM(G110:G121) -> 14,401,570,000
A110: 1 | B110: Irigasi Gintung Limbangan Watumalang | C110: APBD | D110: SDA | F110: Watumalang | G110: 500,000,000
A111: 2 | B111: REHABILITASI DI KALITULANG | C111: APBD | D111: SDA | F111: Watumalang | G111: 100,000,000
A112: 3 | B112: Pembangunan Tangki Septik Komunal Pondok Pesantren Miftahul Huda Siwatu Bumiroso | C112: APBD | D112: CK | F112: Watumalang | G112: 133,500,000
A113: 4 | B113: Pembangunan Jembatan Ruas Jalan Banyukembar - Pasuruhan Kec. Watumalang | C113: APBD | D113: BM | F113: Watumalang | G113: 200,000,000
A114: 5 | B114: Peningkatan Jalan Sumbersari - Binangun | C114: APBD | D114: BM | F114: Watumalang | G114: 2,750,000,000
A115: 6 | B115: Peningkatan Jalan Pasar lawas - Bts. Kab Banjarnegara | C115: APBD | D115: BM | F115: Watumalang | G115: 500,000,000
A116: 7 | B116: Peningkatan Jalan Pasuruhan - Banyukembar | C116: APBD | D116: BM | F116: Watumalang | G116: 500,000,000
A117: 8 | B117: PENIGKATAN JALAN 257 KURIPAN - WONOKAMPIR | C117: DAK | D117: BM | F117: Watumalang | G117: 9,068,070,000
A118: 9 | B118: Aspal Jalan Ruas 264 Wonokampir - Gedangsari- Pagedangan - Mutisari | C118: APBD | D118: BM | F118: Watumalang | G118: 200,000,000 | T118: 0.800 | U118: km
A119: 10 | B119: Pembangunan Drainase dan Senderan Rt. 3 Rw 2 Kp. Wonoroto Kel. Wonoroto Kec. Watumalang | C119: APBD | D119: BM | F119: Watumalang | G119: 100,000,000 | T119: 0.134 | U119: km
A120: 11 | B120: Pembangunan Drainase Jalan Utama Kejiwan Kuripan Blok Petir | C120: APBD | D120: BM | F120: Watumalang | G120: 150,000,000 | T120: 0.400 | U120: km
A121: 12 | B121: Pembangunan rehabilitasi aspal jalan welahan- banyukembar kecamatan watumalang | C121: APBD | D121: BM | F121: Watumalang | G121: 200,000,000 | T121: 0.400 | U121: km
A122: O | B122: KECAMATAN WONOSOBO | G122: =SUM(G123:G129) -> 2,695,000,000
A123: 1 | B123: Rehabilitasi Gedung Kantor Kelurahan Wonosobo Timur | C123: APBD | D123: SEK | F123: Wonosobo | G123: 1,000,000,000 | T123: 0.800 | U123: km
A124: 2 | B124: Pembangunan Gedung Provost Polres Wonosobo (Lanjutan) | C124: APBD | D124: SEK | F124: Wonosobo | G124: 750,000,000 | T124: 1.200 | U124: km
A125: 3 | B125: pembangunan refilitasi irigasi DI Geblok kelurahan miplak kec. wonosobo, Kab. Wonosobo | C125: APBD | D125: SDA | F125: Wonosobo | G125: 200,000,000 | T125: 0.800 | U125: km
A126: 4 | B126: Pembangunan Bendung Penartan Sungai Wanganaji Kelurahan Kalianget Kecamatan Wonosobo | C126: APBD | D126: SDA | F126: Wonosobo | G126: 100,000,000 | T126: 0.200 | U126: km
A127: 5 | B127: Rehabilitasi Saluran dan Senderan Kali Alur DI Mangli Kelurahan Kejiwan Kecamatan Wonosobo | C127: APBD | D127: SDA | F127: Wonosobo | G127: 200,000,000 | T127: 1.160 | U127: km
A128: 6 | B128: Peningkatan Jalan Bugangan - Bangsri Blok Wonokero Kecamatan Wonosobo Ruas 48 | C128: APBD | D128: BM | F128: Wonosobo | G128: 200,000,000 | T128: 0.238 | U128: km
A129: 7 | B129: Rehabilitasi Jalan ruas Sidojoyo - Bangsri No ruas 31 | C129: APBD | D129: BM | F129: Wonosobo | G129: 245,000,000
